Cogmind - Beta 15 @@@ ROGUE MODE // 2025.09.09 @ 15:01:34 Player: winnking222 Result: Destroyed by 8R-AWN with 8R-AWN's Boregun Performance ------------- Evolutions (0) 0 Regions Visited (3) 600 Robots Destroyed (19) 95 Value Destroyed (452) 452 Prototype IDs (23) 460 Alien Tech Used (0) 0 Bonus (300) 300 TOTAL SCORE: 1907 Bonus ------- Aligned with FarCom 300 Cogmind --------- Core Integrity 0/250 Matter 291/300 Energy 264/265 System Corruption 1% Temperature Cool (0) Movement Core (200) Ox3 Location -10/Exiles Parts ------- > --- POWER (1) -------- Improved Ion Engine > --- PROPULSION (2) --- (None) > --- UTILITY (2) ------ Improved Targeting Computer > --- WEAPON (2) ------- Heavy Assault Rifle > --- INVENTORY (5) ---- Grenade Launcher Peak State ------------ > --- POWER ------------ Improved Ion Engine > --- PROPULSION ------- Light Treads Light Treads > --- UTILITY ---------- Improved Targeting Computer Cloak of Protection > --- WEAPON ----------- Heavy Assault Rifle Heavy Assault Rifle > --- INVENTORY -------- Improved Ion Engine Improved Ion Engine High-capacity Matter Pod Blade Trap [Rating: 18] Favorites ----------- Power Improved Ion Engine Engine Improved Ion Engine Propulsion Light Treads Treads Light Treads Utility Seismic Detector Device Seismic Detector Storage High-capacity Storage Unit Processor Improved Targeting Computer Weapon Heavy Assault Rifle Energy Gun Medium Laser Ballistic Gun Heavy Assault Rifle Launcher Grenade Launcher Build | -11 -10 -10 -10 ------- Run | Yrd Mat Min Exi Slots Evolved . | . . . . Power . | . . . . Propulsion . | . . . . Utility . | . . . . Weapon . | . . . . Parts Attached 22 | 7 10 . 5 Power 5 | 1 4 . . Engine 5 | 1 4 . . Core . | . . . . Reactor . | . . . . Propulsion 4 | 2 2 . . Treads 4 | 2 2 . . Leg . | . . . . Wheel . | . . . . Hover . | . . . . Flight . | . . . . Utility 5 | 2 1 . 2 Device 2 | 1 . . 1 Storage 2 | 1 1 . . Processor 1 | . . . 1 Hackware . | . . . . Protection . | . . . . Artifact . | . . . . Weapon 8 | 2 3 . 3 Energy Gun 1 | 1 . . . Energy Cannon . | . . . . Ballistic Gun 6 | 1 3 . 2 Ballistic Cannon . | . . . . Launcher 1 | . . . 1 Special Weapon . | . . . . Impact Weapon . | . . . . Slashing Weapon . | . . . . Piercing Weapon . | . . . . Special Melee Weapon . | . . . . Unidentified Prototypes . | . . . . Parts Lost 9 | . 4 . 5 Power 2 | . 2 . . Propulsion 3 | . 1 . 2 Utility 1 | . . . 1 Weapon 3 | . 1 . 2 Highest Loss Streak 5 | . 2 . 5 To Critical Strikes 5 | . . . 5 Average Backups 12 | 5 14 17 8 Power 2 | . 2 3 1 Propulsion 2 | 2 2 3 1 Utility 3 | . 4 4 2 Weapon 4 | 1 4 6 2 Tool/Special . | . . . . Unused Backups 24 | . 3 4 17 Power 7 | . 1 . 6 Propulsion 5 | . 1 1 3 Utility 6 | . . 1 5 Weapon 5 | . 1 2 2 Tool/Special 1 | . . . 1 Average Slot Usage (%) 99 | . 99 100 98 Engine 13 | . 13 14 14 Treads 27 | . 28 28 26 Device 13 | . 14 14 13 Storage 11 | . 14 14 5 Processor 2 | . . . 8 Ballistic Gun 25 | . 27 28 22 Launcher 1 | . . . 5 Peak Build Rating 18 | 7 12 12 18 Average Rating 12 | 4 10 11 15 On Entrance 7 | . 7 12 12 Naked Turns . | . . . . Heaviest Build 54 | 12 52 52 54 Greatest Support 40 | 40 40 40 40 Greatest Overweight (x) 3 | 1 1 1 3 Average Overweight (x) . | . . 1 . Largest Inventory Capacity 20 | 8 20 20 20 Average Capacity 16 | 7 18 20 11 Most Carried 20 | 8 20 20 20 Average Carried 13 | 5 14 19 10 Final Capacity 20 | 8 20 20 5 Final Carried 20 | 6 20 20 1 Class Distribution -------------------- 100% | Mutant Dominant Class ---------------- Mutant | -10/Materials Mutant | -10/Mines Mutant | -10/Exiles Resources | -11 -10 -10 -10 ----------- Run | Yrd Mat Min Exi Matter Collected 1096 | 276 326 88 406 Remotely . | . . . . Salvage Created 624 | 99 518 . 7 Parts 44 | 8 36 . . Haulers Intercepted 1 | . 1 . . Recyclers Shooed . | . . . . Parts Field Recycled . | . . . . Retrieved Matter . | . . . . Parts Self-Destructed . | . . . . Prevented . | . . . . Kills | -11 -10 -10 -10 ------- Run | Yrd Mat Min Exi Combat Hostiles Destroyed 16 | . 12 . 4 Guns 12 | . 11 . 1 AOE 4 | . 1 . 3 Classes Destroyed 8 | 2 5 . 1 Tunneler 2 | 2 . . . Hauler 1 | . 1 . . Recycler 1 | 1 . . . Operator 1 | . 1 . . Watcher 2 | . 2 . . Swarmer 3 | . 3 . . Grunt 9 | . 9 . . Assembled 4 | . . . 4 Best Kill Streak 4 | 2 4 . 4 Combat Bots Only 4 | . 3 . 4 Max Kills in Single Turn 2 | 1 1 . 2 Gunslinging . | . . . . Exploded 2 | . 1 . 2 Melee . | . . . . Uniques/NPCs Destroyed . | . . . . Combat | -11 -10 -10 -10 -------- Run | Yrd Mat Min Exi Hostile Shots Fired 141 | . 58 14 69 Missed 36 | . 19 4 13 Hits 105 | . 39 10 56 Projectile 105 | . 39 10 56 Critical Strikes 26 | . 1 . 25 Damage Taken 1649 | . 604 90 955 Core 263 | . 52 15 196 Absorbed by Shields . | . . . . Core Remaining (%) 100 | 100 . . . Volleys Fired 86 | 6 43 6 31 Largest 2 | 2 2 2 2 Hottest 70 | 70 46 43 46 Shots Fired 162 | 12 85 11 54 Gun 158 | 12 85 11 50 Cannon . | . . . . Launcher 4 | . . . 4 Special . | . . . . Kinetic 152 | 6 85 11 50 Thermal 6 | 6 . . . Explosive 4 | . . . 4 Electromagnetic . | . . . . Robot Hit Streak 30 | 4 7 2 30 Robot Miss Streak 4 | 4 3 3 1 Penetration Max . | . . . . Secondary Targets 1 | . 1 . . Max Gunslinging Chain 1 | . 1 . . Shots Hit Robots 100 | 6 45 4 45 Core Hits 45 | 5 20 1 19 Critical Kills . | . . . . Critical Parts Destroyed . | . . . . Critical Strikes . | . . . . Melee Attacks . | . . . . Impact . | . . . . Slashing . | . . . . Piercing . | . . . . Sneak Attacks . | . . . . Combat Hostiles . | . . . . Follow-up Attacks . | . . . . Damage Inflicted 1785 | 70 789 48 878 Guns 1460 | 70 679 46 665 Cannons . | . . . . Explosions 323 | . 110 . 213 Melee . | . . . . Ramming 2 | . . 2 . Kinetic 1409 | 19 679 46 665 Thermal 51 | 51 . . . Explosive 323 | . 110 . 213 Electromagnetic . | . . . . Impact . | . . . . Slashing . | . . . . Piercing . | . . . . Highest Corruption 1 | . 1 1 1 Average Corruption 1 | . 1 1 1 Corruption Purged . | . . . . Corruption Blocked . | . . . . Effects 23 | . 10 7 6 Message Errors 9 | . 5 2 2 Matter Fused 4 | . 1 2 1 Heat Flow Errors 2 | . 1 1 . Energy Discharges 1 | . . . 1 Parts Fused 1 | . 1 . . Data Loss (minor) 2 | . . 1 1 Misfires 1 | . 1 . . Alerts 2 | . 1 . 1 Weapon Failures 1 | . . 1 . Overload Shots . | . . . . Overflow Damage 35 | . 34 . 1 Projectiles . | . . . . Explosions 35 | . 34 . 1 Melee . | . . . . Knockbacks . | . . . . Impact . | . . . . Kinetic . | . . . . Secondary . | . . . . Self-Inflicted Damage 166 | . 166 . . Shots 2 | . 2 . . Rammed 1 | . . 1 . Targets Rammed 1 | . . 1 . Kicked . | . . . . Crushed . | . . . . Highest Temperature 262 | 70 193 262 . Average Temperature 42 | 30 26 82 . Received Heat Transfer 231 | . 210 21 . Siege Activations . | . . . . Martial Activations . | . . . . Shielding Activations . | . . . . Robots Disrupted . | . . . . Combat Hostiles . | . . . . Robots Corrupted . | . . . . Combat Hostiles . | . . . . Parts Fried . | . . . . Impact Corruptions . | . . . . Robots Melted . | . . . . Combat Hostiles . | . . . . Parts Melted 2 | 2 . . . Heat Transferred 148 | 148 . . . Parts Sabotaged . | . . . . Parts Stolen . | . . . . Parts Stripped . | . . . . Power Chain Reactions . | . . . . Alert | -11 -10 -10 -10 ------- Run | Yrd Mat Min Exi Maximum Alert Level . | . . . . Low Security (%) 100 | 100 100 100 . Level 1 . | . . . . Level 2 . | . . . . Level 3 . | . . . . Level 4 . | . . . . Level 5 . | . . . . High Security . | . . . . Max Security . | . . . . Peak Influence 137 | 5 137 . . Initial . | . . . . Average 23 | 1 37 . . Influence Increases 442 | 15 427 . . Destroy 0b10 Robot/C 240 | . 240 . . Destroy 0b10 Robot/NC 35 | 15 20 . . Destroy Leader 66 | . 66 . . Successful Hack 17 | . 17 . . Disable Machine 30 | . 30 . . Destroy Structure 39 | . 39 . . Lose Combat Pursuer 15 | . 15 . . Influence Decreases 442 | 15 427 . . Time Decay 402 | 15 387 . . Lost Part 40 | . 40 . . Squads Dispatched 3 | . 3 . . Investigation 1 | . 1 . . Extermination . | . . . . Reinforcement 2 | . 2 . . Assault . | . . . . Garrison . | . . . . Intercept . | . . . . Searches Triggered . | . . . . Construction Impeded . | . . . . Haulers Reinforced . | . . . . Active Scanning Responses . | . . . . Cargo Convoy Interrupts . | . . . . Stealth | -11 -10 -10 -10 --------- Run | Yrd Mat Min Exi Distress Signals 1 | . 1 . . Communications Jammed . | . . . . Distress Signals . | . . . . Times Spotted 37 | . 19 8 10 Peak Tracking Total 12 | . 3 3 12 Tactical Retreats 4 | . 1 . 3 Traps | -11 -10 -10 -10 ------- Run | Yrd Mat Min Exi Traps Triggered 2 | . 2 . . Indirectly . | . . . . Trap Hack Attempts . | . . . . Triggered . | . . . . Disarmed . | . . . . Reprogrammed . | . . . . Reused 4 | . . . 4 Traps Extracted . | . . . . Installed 4 | . . . 4 Triggered . | . . . . Most Traps Carried 4 | . . 4 4 Machines | -11 -10 -10 -10 ---------- Run | Yrd Mat Min Exi Machines Disabled 5 | . 2 . 3 Max in Single Turn 1 | . 1 . 1 Machines Repaired . | . . . . Machines Dismantled . | . . . . Machines Sabotaged . | . . . . Overloaded Fab Kills . | . . . . Hacking | -11 -10 -10 -10 --------- Run | Yrd Mat Min Exi Machines Accessed 7 | . 5 . 2 Terminals 5 | . 5 . . Fabricators . | . . . . Repair Stations . | . . . . Recycling Units . | . . . . Scanalyzers . | . . . . Garrison Access . | . . . . Total Hacks 16 | . 14 . 2 Successful 11 | . 9 . 2 Failed 5 | . 5 . . Catastrophic . | . . . . Database Lockouts . | . . . . Manual 15 | . 14 . 1 Terminals 14 | . 14 . . Fabricators . | . . . . Repair Stations . | . . . . Recycling Units . | . . . . Scanalyzers . | . . . . Garrison Access . | . . . . Terminal Hacks 2 | . . . 2 Record 1 | . . . 1 Proto ID Catalog 1 | . . . 1 Fabricator Hacks . | . . . . Repair Station Hacks . | . . . . Recycling Unit Hacks . | . . . . Scanalyzer . | . . . . Garrison Access Hacks . | . . . . Unauthorized Hacks 9 | . 9 . . Terminals 9 | . 9 . . Track 1 | . 1 . . Botnet 1 | . 1 . . Detonate 1 | . 1 . . Operators 1 | . 1 . . Skim 5 | . 5 . . Fabricators . | . . . . Repair Stations . | . . . . Recycling Units . | . . . . Scanalyzers . | . . . . Garrison Access . | . . . . Data Cores Recovered 1 | . 1 . . Used . | . . . . Hacking Detections 4 | . 4 . . Full Trace Events . | . . . . Feedback Events . | . . . . Feedback Blocked . | . . . . Robot Schematics Acquired . | . . . . Robots Built . | . . . . Authchips . | . . . . Time . | . . . . Total Robot Build Rating . | . . . . Part Schematics Acquired . | . . . . Parts Built . | . . . . Authchips . | . . . . Time . | . . . . Total Part Build Rating . | . . . . Parts Repaired . | . . . . Time . | . . . . Parts Recycled . | . . . . Recycled Matter . | . . . . Retrieved Matter . | . . . . Retrieved Components . | . . . . Parts Scanalyzed . | . . . . Part Schematics Acquired . | . . . . Parts Damaged . | . . . . Bothacking | -11 -10 -10 -10 ------------ Run | Yrd Mat Min Exi Used RIF Installer . | . . . . Robots Hacked . | . . . . Non-combat . | . . . . Combat . | . . . . Robot Hacks Applied . | . . . . Relay Couplers Released . | . . . . Fabnet Peak Effective % . | . . . . Robots Rewired . | . . . . Allies Hacked . | . . . . Hacks Repelled . | . . . . Allies | -11 -10 -10 -10 -------- Run | Yrd Mat Min Exi Total Allies . | . . . . Largest Group . | . . . . Highest-Rated Group . | . . . . Highest-Rated Ally . | . . . . Total Orders . | . . . . Ally Attacks . | . . . . Total Damage . | . . . . Kills . | . . . . Allies Corrupted . | . . . . Allies Melted . | . . . . Intel | -11 -10 -10 -10 ------- Run | Yrd Mat Min Exi Active Infowar (turns) 2854 | 32 1482 827 513 Seismic 2852 | 32 1482 827 511 Cloaking 2 | . . . 2 Robot Analysis Total . | . . . . Derelict Logs Recovered 2 | . . 2 . Drone Launches . | . . . . Drone Recoveries . | . . . . Exploration | -11 -10 -10 -10 ------------- Run | Yrd Mat Min Exi Turns Passed 3655 | 109 1482 827 1237 Spaces Moved 1413 | 56 472 320 565 Core 22 | 21 . . 1 Treads 1391 | 35 472 320 564 Legs . | . . . . Wheels . | . . . . Hover . | . . . . Flight . | . . . . Fastest Speed 50 | 50 160 240 160 Average Speed 210 | 125 226 240 189 Slowest Speed 240 | 160 240 240 240 Overloaded Moves . | . . . . Propulsion Burnouts . | . . . . Robots Hopped . | . . . . Potential Cave-ins . | . . . . Cave-ins Triggered . | . . . . Exploration Rate (%) 53 | 4 90 61 59 Regions Visited 3 Branch Regions 2 Pre-discovered Areas 3 | . 1 1 1 Known Exits Taken . | . . . . Unknown Exits Taken 3 | 1 1 1 . Scrap Searched . | . . . . Spaces Dug . | . . . . Terrain Destroyed 56 | . 41 . 15 Melee . | . . . . Projectile . | . . . . AOE 56 | . 41 . 15 Terrain Rammed . | . . . . Walls Destroyed . | . . . . Machines Disabled . | . . . . Actions | -11 -10 -10 -10 --------- Run | Yrd Mat Min Exi Total 1945 | 84 804 370 687 Wait 326 | 4 249 34 39 Move 1410 | 55 471 319 565 Hop . | . . . . Pick Up 59 | 12 23 5 19 Fast Attach 2 | 1 1 . . Attach 15 | 6 5 . 4 Detach . | . . . . Swap 7 | . 4 . 3 Drop 35 | . 8 5 22 Fire 86 | 6 43 6 31 Melee . | . . . . Ram . | . . . . Kick . | . . . . Crush 1 | . . 1 . Escape Stasis . | . . . . Rewire . | . . . . Trap 4 | . . . 4 Miscellaneous . | . . . . Route ------- -11/Scrapyard -10/Materials (discovered 5 exits: [*Mat x3] / [*Min] / [*Sub]) -10/Mines (discovered 4 exits: [*Mat x2] / *Exi / [*Sub]) -10/Exiles History --------- Turn | Location | Event 3 | -11/Scrapyard | Discovered new exit (range 15) 110 | -11/Scrapyard | Entered Materials 312 | -10/Materials | Discovered new exit (range 7) 315 | -10/Materials | Build established: Mutant 434 | -10/Materials | Discovered new exit (range 5) 631 | -10/Materials | Discovered new exit (range 14) 736 | -10/Materials | Discovered new exit (range 11) 991 | -10/Materials | Discovered new exit (range 4) 1330 | -10/Materials | Learned location of 3 exits from Materials 1453 | -10/Materials | Loaded intel: 8 terminal locations 1502 | -10/Materials | Learned Storage trap positions 1592 | -10/Materials | Entered Mines 1593 | -10/Mines | Met a Derelict testing a Signal Generator 1598 | -10/Mines | Found Signal Generator 1641 | -10/Mines | Learned location of 2 exits from Materials 1706 | -10/Mines | Discovered new exit (range 8) 1945 | -10/Mines | Discovered new exit (range 11) 2162 | -10/Mines | Found a hidden stash of uninstalled traps 2202 | -10/Mines | Learned location of Zion (-7) 2240 | -10/Mines | Discovered new exit (range 6) 2275 | -10/Mines | Assembled infested the area 2405 | -10/Mines | Deemed a non-threat by the Exiles lab entrance 2405 | -10/Mines | Discovered new exit (range 5) 2419 | -10/Mines | Entered Exiles 2477 | -10/Exiles | Met 8R-AWN 2518 | -10/Exiles | Met EX-HEX 2590 | -10/Exiles | Met EX-BIN 2616 | -10/Exiles | Aligned with FarCom system 2619 | -10/Exiles | Given EX-Vault access code 2674 | -10/Exiles | Opened EX-Vault 2698 | -10/Exiles | Found Field Lobotomy Kit 2710 | -10/Exiles | Found Cloak of Protection 2713 | -10/Exiles | Found Supersonic Drone Bay 2767 | -10/Exiles | Warned to stay clear of 0b10 Research branches 2830 | -10/Exiles | Met EX-DEC 3496 | -10/Exiles | Attacked by the Exiles 3621 | -10/Exiles | Core integrity fell below 50% 3649 | -10/Exiles | Core integrity fell below 20% 3656 | -10/Exiles | Destroyed by 8R-AWN with 8R-AWN's Boregun Last Messages --------------- 03633_ Penetrated by HV Slug. 03635_ HV Slug penetrates Wall. 03635_ Penetrated by HV Slug. 03636_ Extracted 6 matter. 03638_ Penetrated by HV Slug. 03638_ HV Slug penetrates Wall. 03639_ Wall collapses. 03639_ Extracted 6 matter. 03640_ Penetrated by HV Slug. 03641_ Destroyed Prototype Protection. 03642_ Extracted 6 matter. 03643_ Penetrated by HV Slug. 03645_ Extracted 6 matter. 03648_ Extracted 5 matter. 03648_ Penetrated by HV Slug. 03648_ Critical hit (Destroy). 03648_ Hvy. Assault Rifle destroyed. 03652_ Penetrated by HV Slug. 03656_ HV Slug penetrates Wall. 03656_ Penetrated by HV Slug. Map ----- +----------------------------------------------------+ | ?????????????????????????????????????????????????? | | ?????????????????????????????????????????????????? | | ?????????????????????????????????????????????????? | | ?????????????????????????????????????????????????? | | ?????????????????????????????????????????????????? | | ?????????????????????????????????????????????????? | | ?????????????????????????????????????????????????? | | ?????????????????????????????????????????????????? | | ?????????????????????????????????????????????????? | | ?????????????????????????????????????????????????? | | ??????????????????????????????#######????????????? | | ??????????????? ######???????#!!! "#????????????? | | ??????????????? #""#??????# "#????????????? | | ?????????????? ??????# "#????????????? | | ??????????????" #????## ""#????????????# | | ??????????????" #####" ""#???????????? | | ???????????????# ##" ""?????????????" | | ????????????????# #"" #??????????????" | | ???????????????????# #?????????????"" | | ??????????????????????# ##????????????"" | | ??????????????????????### ## ##??????? | | ????????????????########" #????????" | | ????????????????# !!"""" ^^ #????????# | | ????????????????#! ! & ! g ###" ####???### | | ????????????????#! =*! =* #?## "####X# | | ????????????????# *!!! @!##??#" | | ????????????????#|!""""" ;;#???#" % | | ????????????????########## #???## | | ?????????????????????????# #?????# | | ?????????????????????????# #??????##### | | ?????????????????????????# #??????????## | | ?????????????????????????# #???????????## | | ?????????????????????????# #????????????##" | | ?????????????????????????# #?????????????#""" | | ?????????????????????????? ??????????????#" | | ?????????????????????????? ??????????????"" | | ?????????????????????????? ?????????????#""" | | ?????????????????????????? ?????????????""" | | ?????????????????????????? ?????????????""" | | ?????????????????????????? ??????????????" | | ?????????????????????????? ??????????????"" | | ????????????????????????????????????????"" | | ?????????????????????????????????????????"" | | ??????????????????????????????????????????""" | | ???????????????????????????????????????????? | | ?????????????????????????????????????????????? | | ?????????????????????????????????????????????????? | | ?????????????????????????????????????????????????? | | ?????????????????????????????????????????????????? | | ?????????????????????????????????????????????????? | +----------------------------------------------------+ Best States ------------- Heat Dissipation 25 Energy Generation 12 Energy Capacity 265 Matter Stores 300 Matter Capacity 300 Sight Range 16 Terrain Scan Density 10 Evasion (%) 50 Targeting Accuracy 6 Recoil Reduction 2 Item Schematics ----------------- None Robot Schematics ------------------ None Fabricated ------------ Nothing Repaired ---------- Nothing Alien Tech Used ----------------- None Achievements -------------- None Challenges ------------ None Game ------ Seed ComponentSmartKatana Manual? 0 Play Time 00:17:22 Cumulative 172.9 hours Start 2025.09.09 @ 14:46:58 End 2025.09.09 @ 15:01:34 Sessions 1 Manual Loads 0 Difficulty Rogue Special Mode None Game No. 237 Rogue 237 Adventurer 0 Explorer 0 Win Type - Total 2 Types 2/0/0/0/0/0/0/0/0/0 Lore% 72 Gallery% 69 Achievement% 60 Wizard Run 0 Options --------- Layout 0 ASCII 0 Keyboard 0 Movement Mouse Keybinds 0 Fullscreen 1 Font 16/SmallcapsGlow Map View 75x55 Zoom Use 0% Tactical HUD 1 Map Filters NONE Filters NONE Steam 1 RUN: e2366143-4f90-46b4-9eb8-a66dff2b151a